[Event "9th RTU Open 2019"]
[Site "Riga"]
[Date "2019.08.08"]
[Round "5.23"]
[White "Mikaelyan, Arman"]
[Black "Dordzhieva, Dinara"]
[Result "1-0"]
[ECO "B31"]
[WhiteElo "2454"]
[BlackElo "2306"]
[Annotator "ChessBase"]
[PlyCount "147"]
[EventDate "2019.08.05"]
[EventType "swiss"]
[EventCountry "LAT"]
[SourceTitle "playchess.com"]
[Source "ChessBase"]
[SourceQuality "1"]
[TimeControl "5400+30"]

1. e4 {[%emt 0:00:00]} c5 {[%emt 0:00:00]} 2. Nc3 {[%emt 0:00:00]} Nc6 {[%emt 0:00:00]} 3. Bb5 {[%emt 0:00:00]} Nd4 {[%emt 0:00:02]} 4. Nf3 {[%emt 0:00:01]} g6 {[%emt 0:02:20]} 5. Nxd4 {[%emt 0:01:21]} cxd4 {[%emt 0:00:04]} 6. Ne2 {[%emt 0:00:05]} Bg7 {[%emt 0:00:12]} 7. O-O {[%emt 0:00:14]} e5 {[%emt 0:04:01]} 8. d3 {[%emt 0:05:00]} Nf6 {[%emt 0:05:20]} 9. f4 {[%emt 0:05:29]} O-O {[%emt 0:02:10]} 10. fxe5 {[%emt 0:17:02]} Ng4 {[%emt 0:01:15]} 11. Bc4 {[%emt 0:01:06]} Nxe5 {[%emt 0:13:19]} 12. Bd5 {[%emt 0:01:25]} d6 {[%emt 0:01:19]} 13. h3 {[%emt 0:04:21]} Qb6 {[%emt 0:08:56]} 14. a4 {[%emt 0:00:41]} a5 {[%emt 0:02:51]} 15. Ra3 {[%emt 0:00:41]} Rb8 {[%emt 0:03:48]} 16. Rb3 {[%emt 0:02:42]} Qc5 {[%emt 0:11:09]} 17. Kh1 {[%emt 0:05:19]} Bd7 {[%emt 0:06:39]} 18. c3 {[%emt 0:03:07]} Nc6 {[%emt 0:06:12]} 19. Rb5 {[%emt 0:18:09]} Qa7 {[%emt 0:00:23]} 20. Bf4 {[%emt 0:00:30]} Be5 {[%emt 0:18:50]} 21. Bxc6 {[%emt 0:04:34]} bxc6 {[%emt 0:03:16]} 22. Rxe5 {[%emt 0:06:11]} dxe5 {[%emt 0:00:27]} 23. Bxe5 {[%emt 0:00:03]} Rxb2 {[%emt 0:00:30]} 24. Bxd4 {[%emt 0:05:32]} Qc7 {[%emt 0:01:35]} 25. Bf6 {[%emt 0:00:58]} Rfb8 {[%emt 0:00:26]} 26. c4 {[%emt 0:09:23]} Rb1 {[%emt 0:02:15]} 27. Nc1 {[%emt 0:00:04]} h6 {[%emt 0:05:07]} 28. Qd2 {[%emt 0:01:58]} Kh7 {[%emt 0:00:32]} 29. Bc3 {[%emt 0:00:13]} Be6 {[%emt 0:00:28]} 30. Qe3 {[%emt 0:01:43]} c5 {[%emt 0:00:51]} 31. Qf2 {[%emt 0:00:53]} Qe7 {[%emt 0:00:29]} 32. h4 {[%emt 0:01:36]} R8b7 {[%emt 0:00:31]} 33. Qf4 {[%emt 0:00:32]} Rb8 {[%emt 0:00:29]} 34. Kg1 {[%emt 0:00:38]} Rg8 {[%emt 0:00:33]} 35. Qe5 {[%emt 0:01:20]} g5 {[%emt 0:00:29]} 36. h5 {[%emt 0:01:15]} g4 {[%emt 0:00:34]} 37. Bd2 {[%emt 0:00:21]} Qh4 {[%emt 0:00:34]} 38. g3 {[%emt 0:00:59]} Qe7 {[%emt 0:00:32]} 39. Rf6 {[%emt 0:00:24]} Qf8 {[%emt 0:00:27]} 40. Qf4 {[%emt 0:00:32]} Rg5 {[%emt 0:00:28]} 41. Rxe6 {[%emt 0:00:18]} Rxh5 {[%emt 0:00:17]} 42. Rf6 {[%emt 0:00:17]} Kg8 {[%emt 0:00:38]} 43. e5 {[%emt 0:02:42]} Qg7 {[%emt 0:00:35]} 44. Kg2 {[%emt 0:00:46]} Rb2 {[%emt 0:00:15]} 45. Ne2 {[%emt 0:00:33]} Qg5 {[%emt 0:00:25]} 46. e6 {[%emt 0:00:27]} Qxf4 {[%emt 0:00:48]} 47. exf7+ {[%emt 0:00:06]} Kf8 {[%emt 0:00:04]} 48. Bxf4 {[%emt 0:00:35]} Rxe2+ {[%emt 0:00:14]} 49. Kf1 {[%emt 0:00:10]} Re7 {[%emt 0:00:30]} 50. Bd6 {[%emt 0:00:44]} Rhe5 {[%emt 0:00:58]} 51. Bxe5 {[%emt 0:01:42]} Rxe5 {[%emt 0:00:02]} 52. Kf2 {[%emt 0:00:33]} h5 {[%emt 0:00:22]} 53. Ra6 {[%emt 0:00:32]} Kxf7 {[%emt 0:00:54]} 54. Rxa5 {[%emt 0:00:04]} Ke6 {[%emt 0:00:48]} 55. Ra6+ {[%emt 0:00:15]} Kf5 {[%emt 0:00:43]} 56. Rc6 {[%emt 0:00:12]} Kg5 {[%emt 0:00:23]} 57. Rc8 {[%emt 0:00:27]} Rf5+ {[%emt 0:00:39]} 58. Kg2 {[%emt 0:00:17]} Re5 {[%emt 0:00:09]} 59. a5 {[%emt 0:00:14]} h4 {[%emt 0:00:24]} 60. Rg8+ {[%emt 0:01:11]} Kf5 {[%emt 0:00:06]} 61. Rf8+ {[%emt 0:00:17]} Kg5 {[%emt 0:00:05]} 62. gxh4+ {[%emt 0:01:10]} Kxh4 {[%emt 0:00:03]} 63. Rh8+ {[%emt 0:00:37]} Kg5 {[%emt 0:00:02]} 64. a6 {[%emt 0:00:03]} Re2+ {[%emt 0:00:38]} 65. Kg3 {[%emt 0:00:13]} Re3+ {[%emt 0:00:38]} 66. Kf2 {[%emt 0:00:12]} Rf3+ {[%emt 0:00:17]} 67. Kg2 {[%emt 0:00:45]} Rf7 {[%emt 0:00:02]} 68. Rc8 {[%emt 0:00:12]} Kf4 {[%emt 0:00:26]} 69. Rxc5 {[%emt 0:00:16]} Re7 {[%emt 0:00:22]} 70. Ra5 {[%emt 0:00:18]} g3 {[%emt 0:02:59]} 71. a7 {[%emt 0:01:16]} Re2+ {[%emt 0:00:05]} 72. Kf1 {[%emt 0:00:22]} g2+ {[%emt 0:00:10]} 73. Kg1 {[%emt 0:00:25]} Kg3 {[%emt 0:00:04]} 74. Ra1 {[%emt 0:00:26]} 1-0

[Event "9th RTU Open 2019"]
[Site "Riga"]
[Date "2019.08.08"]
[Round "5.24"]
[White "Baum, Jonasz"]
[Black "Kjartansson, Gudmundur"]
[Result "0-1"]
[ECO "E62"]
[WhiteElo "2308"]
[BlackElo "2470"]
[Annotator "ChessBase"]
[PlyCount "68"]
[EventDate "2019.08.05"]
[EventType "swiss"]
[EventCountry "LAT"]
[SourceTitle "playchess.com"]
[Source "ChessBase"]
[SourceQuality "1"]
[TimeControl "5400+30"]

1. d4 {[%emt 0:00:00]} Nf6 {[%emt 0:00:00]} 2. c4 {[%emt 0:00:00]} g6 {[%emt 0:00:00]} 3. Nf3 {[%emt 0:00:00]} Bg7 {[%emt 0:00:00]} 4. g3 {[%emt 0:00:00]} O-O {[%emt 0:00:01]} 5. Bg2 {[%emt 0:00:00]} d6 {[%emt 0:00:36]} 6. O-O {[%emt 0:00:00]} Nc6 {[%emt 0:00:38]} 7. Nc3 {[%emt 0:00:11]} Bf5 {[%emt 0:00:38]} 8. Ne1 {[%emt 0:00:14]} Bd7 {[%emt 0:00:45]} 9. e4 {[%emt 0:01:13]} e5 {[%emt 0:00:26]} 10. d5 {[%emt 0:01:54]} Nd4 {[%emt 0:00:17]} 11. Nc2 {[%emt 0:00:27]} Re8 {[%emt 0:00:41]} 12. f4 {[%emt 0:11:34]} c6 {[%emt 0:12:33]} 13. Qd3 {[%emt 0:13:05]} cxd5 {[%emt 0:07:40]} 14. fxe5 {[%emt 0:03:00]} dxe5 {[%emt 0:01:02]} 15. cxd5 {[%emt 0:03:02]} Qb6 {[%emt 0:04:11]} 16. Kh1 {[%emt 0:01:19]} Rac8 {[%emt 0:01:56]} 17. Rb1 {[%emt 0:04:18]} Rxc3 {[%emt 0:11:29]} 18. Qxc3 {[%emt 0:06:19]} Rc8 {[%emt 0:00:31]} 19. Qb4 {[%emt 0:14:42]} Rxc2 {[%emt 0:03:55]} 20. Qxb6 {[%emt 0:01:45]} axb6 {[%emt 0:00:06]} 21. Be3 {[%emt 0:13:43]} Ng4 {[%emt 0:01:54]} 22. Bg1 {[%emt 0:00:12]} Bh6 {[%emt 0:08:14]} 23. h3 {[%emt 0:01:02]} Ne2 {[%emt 0:04:03]} 24. Rf3 {[%emt 0:03:03]} Nxg1 {[%emt 0:00:48]} 25. Rc3 {[%emt 0:02:18]} Ne2 {[%emt 0:02:13]} 26. hxg4 {[%emt 0:01:40]} Nxc3 {[%emt 0:00:14]} 27. bxc3 {[%emt 0:00:04]} Be3 {[%emt 0:01:16]} 28. Rb3 {[%emt 0:02:04]} Bxg4 {[%emt 0:00:38]} 29. c4 {[%emt 0:00:17]} Rc1+ {[%emt 0:00:13]} 30. Kh2 {[%emt 0:00:09]} Bg1+ {[%emt 0:00:07]} 31. Kh1 {[%emt 0:00:00]} Bc5+ {[%emt 0:00:12]} 32. Kh2 {[%emt 0:00:00]} Rxc4 {[%emt 0:00:10]} 33. Rd3 {[%emt 0:00:17]} Rc2 {[%emt 0:00:46]} 34. Kh1 {[%emt 0:00:55]} Kf8 {[%emt 0:02:41]} 0-1

[Event "9th RTU Open 2019"]
[Site "Riga"]
[Date "2019.08.08"]
[Round "5.25"]
[White "Rehn, Ralf"]
[Black "Usmanov, Vasily"]
[Result "0-1"]
[ECO "B52"]
[WhiteElo "2161"]
[BlackElo "2443"]
[Annotator "NA"]
[PlyCount "110"]
[EventDate "2019.08.05"]
[EventType "swiss"]
[EventCountry "LAT"]
[SourceTitle "playchess.com"]
[Source "ChessBase"]
[SourceQuality "1"]
[TimeControl "5400+30"]

1. e4 {[%emt 0:00:00]} c5 {[%emt 0:00:20]} 2. Nf3 {[%emt 0:00:54]} d6 {[%emt 0:00:02]} 3. d4 {[%emt 0:00:11]} Nf6 {[%emt 0:00:04]} 4. Bb5+ {[%emt 0:01:30]} Bd7 {[%emt 0:03:50]} 5. Bxd7+ {[%emt 0:00:55]} Qxd7 {[%emt 0:00:18]} 6. Nc3 {[%emt 0:02:50]} cxd4 {[%emt 0:00:04]} 7. Nxd4 {[%emt 0:00:53]} Nc6 {[%emt 0:00:06]} 8. O-O {[%emt 0:02:16]} g6 {[%emt 0:00:05]} 9. Nxc6 {[%emt 0:07:06]} bxc6 {[%emt 0:02:02]} 10. e5 {[%emt 0:00:20]} dxe5 {[%emt 0:00:48]} 11. Qe2 {[%emt 0:00:53]} Bg7 {[%emt 0:02:14]} 12. Qxe5 {[%emt 0:04:41]} O-O {[%emt 0:00:10]} 13. Qc5 {[%emt 0:01:56]} Rfd8 {[%emt 0:04:19]} 14. Be3 {[%emt 0:05:49]} Nd5 {[%emt 0:02:03]} 15. Rad1 {[%emt 0:05:16]} Qb7 {[%emt 0:27:40]} 16. Na4 {[%emt 0:05:49]} e5 {[%emt 0:01:43]} 17. b3 {[%emt 0:05:34]} Bf8 {[%emt 0:01:01]} 18. Qc4 {[%emt 0:00:55]} Nxe3 {[%emt 0:06:09]} 19. fxe3 {[%emt 0:00:11]} Rxd1 {[%emt 0:09:46]} 20. Rxd1 {[%emt 0:00:14]} Qb5 {[%emt 0:00:53]} 21. Nb2 {[%emt 0:02:00]} Ba3 {[%emt 0:03:08]} 22. Rd7 {[%emt 0:00:18]} Rf8 {[%emt 0:00:03]} 23. Qxb5 {[%emt 0:07:17]} cxb5 {[%emt 0:02:45]} 24. Nd3 {[%emt 0:01:18]} e4 {[%emt 0:00:06]} 25. Ne5 {[%emt 0:03:17]} f5 {[%emt 0:01:24]} 26. Nc6 {[%emt 0:06:09]} Bc5 {[%emt 0:01:00]} 27. Nd4 {[%emt 0:10:14]} Rc8 {[%emt 0:00:36]} 28. Kf1 {[%emt 0:06:35]} a6 {[%emt 0:02:16]} 29. Ne6 {[%emt 0:01:58]} Bxe3 {[%emt 0:00:58]} 30. Ke2 {[%emt 0:01:08]} Bg1 {[%emt 0:02:47]} 31. Rg7+ {[%emt 0:01:01]} Kh8 {[%emt 0:00:01]} 32. Rc7 {[%emt 0:00:33]} Re8 {[%emt 0:02:26]} 33. Ng5 {[%emt 0:00:08]} Kg8 {[%emt 0:02:07]} 34. Nf7 {[%emt 0:04:13]} Rf8 {[%emt 0:02:57]} 35. Nh6+ {[%emt 0:00:30]} Kh8 {[%emt 0:00:07]} 36. Nf7+ {[%emt 0:02:32]} Kg7 {[%emt 0:02:03]} 37. Ng5+ {[%emt 0:02:19]} Kg8 {[%emt 0:00:04]} 38. h4 {[%emt 0:02:47]} h6 {[%emt 0:01:43]} 39. Ne6 {[%emt 0:00:57]} Rf7 {[%emt 0:02:33]} 40. Rc8+ {[%emt 0:00:17]} Kh7 {[%emt 0:00:08]} 41. h5 {[%emt 0:00:30]} gxh5 {[%emt 0:01:21]} 42. Rc7 {[%emt 0:02:50]} Rxc7 {[%emt 0:02:10]} 43. Nxc7 {[%emt 0:00:01]} h4 {[%emt 0:00:22]} 44. Nxa6 {[%emt 0:00:10]} f4 {[%emt 0:00:10]} 45. Kf1 {[%emt 0:01:19]} Bd4 {[%emt 0:01:30]} 46. c3 {[%emt 0:01:30]} Bb6 {[%emt 0:09:11]} 47. Nb4 {[%emt 0:00:06]} f3 {[%emt 0:00:35]} 48. Nc2 {[%emt 0:01:43]} h3 {[%emt 0:03:16]} 49. gxh3 {[%emt 0:00:50]} Kg6 {[%emt 0:00:27]} 50. a4 {[%emt 0:00:16]} bxa4 {[%emt 0:00:04]} 51. bxa4 {[%emt 0:00:06]} Kf5 {[%emt 0:00:58]} 52. Nd4+ {[%emt 0:00:39]} Kf4 {[%emt 0:00:12]} 53. Ne6+ {[%emt 0:01:51]} Kg3 {[%emt 0:00:16]} 54. c4 {[%emt 0:00:05]} e3 {[%emt 0:00:18]} 55. c5 {[%emt 0:00:14]} e2+ {[%emt 0:00:02]} 0-1

[Event "9th RTU Open 2019"]
[Site "Riga"]
[Date "2019.08.08"]
[Round "5.26"]
[White "Shailesh, Dravid"]
[Black "Grinev, Valeriy"]
[Result "1/2-1/2"]
[ECO "B04"]
[WhiteElo "2254"]
[BlackElo "2437"]
[Annotator "NA"]
[PlyCount "96"]
[EventDate "2019.08.05"]
[EventType "swiss"]
[EventCountry "LAT"]
[SourceTitle "playchess.com"]
[Source "ChessBase"]
[SourceQuality "1"]
[TimeControl "5400+30"]

1. e4 {[%emt 0:00:00]} Nf6 {[%emt 0:00:37]} 2. e5 {[%emt 0:00:36]} Nd5 {[%emt 0:00:08]} 3. d4 {[%emt 0:00:21]} d6 {[%emt 0:00:11]} 4. c4 {[%emt 0:00:09]} Nb6 {[%emt 0:00:05]} 5. exd6 {[%emt 0:00:06]} cxd6 {[%emt 0:00:07]} 6. Nc3 {[%emt 0:00:27]} g6 {[%emt 0:00:07]} 7. h3 {[%emt 0:00:23]} Bg7 {[%emt 0:00:18]} 8. Nf3 {[%emt 0:00:18]} O-O {[%emt 0:00:23]} 9. Be2 {[%emt 0:00:29]} Nc6 {[%emt 0:05:55]} 10. O-O {[%emt 0:00:30]} e5 {[%emt 0:06:46]} 11. Bg5 {[%emt 0:04:20]} f6 {[%emt 0:00:47]} 12. Be3 {[%emt 0:02:20]} f5 {[%emt 0:20:24]} 13. d5 {[%emt 0:07:24]} Ne7 {[%emt 0:00:09]} 14. a4 {[%emt 0:07:00]} f4 {[%emt 0:09:22]} 15. Bc1 {[%emt 0:04:35]} Bf5 {[%emt 0:00:09]} 16. a5 {[%emt 0:06:16]} Nd7 {[%emt 0:01:52]} 17. Ng5 {[%emt 0:00:45]} Rc8 {[%emt 0:06:29]} 18. a6 {[%emt 0:05:35]} bxa6 {[%emt 0:05:43]} 19. Rxa6 {[%emt 0:01:43]} Nc5 {[%emt 0:00:06]} 20. Rxa7 {[%emt 0:01:09]} Bf6 {[%emt 0:01:14]} 21. Nf3 {[%emt 0:16:46]} Qb6 {[%emt 0:01:36]} 22. Nb5 {[%emt 0:04:45]} Ne4 {[%emt 0:14:51]} 23. Bd2 {[%emt 0:07:37]} Nxd2 {[%emt 0:08:10]} 24. Qxd2 {[%emt 0:01:41]} e4 {[%emt 0:01:49]} 25. Nfd4 {[%emt 0:00:57]} f3 {[%emt 0:00:21]} 26. gxf3 {[%emt 0:00:31]} exf3 {[%emt 0:00:07]} 27. Nxf3 {[%emt 0:00:39]} Bxh3 {[%emt 0:00:25]} 28. Rfa1 {[%emt 0:01:51]} Nf5 {[%emt 0:00:35]} 29. R1a6 {[%emt 0:01:20]} Qd8 {[%emt 0:00:17]} 30. Rc6 {[%emt 0:04:14]} Bg4 {[%emt 0:01:34]} 31. Nfd4 {[%emt 0:04:15]} Bxd4 {[%emt 0:08:35]} 32. Nxd4 {[%emt 0:01:15]} Bxe2 {[%emt 0:00:57]} 33. Ne6 {[%emt 0:07:57]} Qh4 {[%emt 0:01:14]} 34. Qxe2 {[%emt 0:00:13]} Ng3 {[%emt 0:00:13]} 35. Qf3 {[%emt 0:01:05]} Nf5 {[%emt 0:02:44]} 36. Nxf8 {[%emt 0:01:40]} Qg5+ {[%emt 0:00:23]} 37. Qg2 {[%emt 0:01:25]} Qc1+ {[%emt 0:00:05]} 38. Kh2 {[%emt 0:02:13]} Rxf8 {[%emt 0:01:48]} 39. Rcc7 {[%emt 0:00:41]} Qf4+ {[%emt 0:00:42]} 40. Qg3 {[%emt 0:00:18]} Qh6+ {[%emt 0:00:05]} 41. Qh3 {[%emt 0:00:04]} Qf4+ {[%emt 0:00:04]} 42. Kg1 {[%emt 0:01:31]} Qc1+ {[%emt 0:00:06]} 43. Kg2 {[%emt 0:00:18]} Qg5+ {[%emt 0:00:07]} 44. Qg3 {[%emt 0:02:08]} Qh5 {[%emt 0:00:06]} 45. Qc3 {[%emt 0:01:56]} Qg4+ {[%emt 0:00:12]} 46. Qg3 {[%emt 0:00:40]} Qh5 {[%emt 0:00:05]} 47. Qc3 {[%emt 0:00:04]} Qg4+ {[%emt 0:00:04]} 48. Kf1 {[%emt 0:00:28]} Qd1+ 1/2-1/2

[Event "9th RTU Open 2019"]
[Site "Riga"]
[Date "2019.08.08"]
[Round "5.27"]
[White "Brikers, Aleksandrs"]
[Black "Ostrovskiy, Aleksandr"]
[Result "0-1"]
[ECO "B13"]
[WhiteElo "2011"]
[BlackElo "2453"]
[Annotator "ChessBase"]
[PlyCount "70"]
[EventDate "2019.08.05"]
[EventType "swiss"]
[EventCountry "LAT"]
[SourceTitle "playchess.com"]
[Source "ChessBase"]
[SourceQuality "1"]
[TimeControl "5400+30"]

1. e4 {[%emt 0:00:00]} c6 {[%emt 0:03:45]} 2. d4 {[%emt 0:00:00]} d5 {[%emt 0:00:32]} 3. exd5 {[%emt 0:00:00]} cxd5 {[%emt 0:00:06]} 4. Bd3 {[%emt 0:00:00]} Nc6 {[%emt 0:00:09]} 5. c3 {[%emt 0:00:00]} g6 {[%emt 0:01:48]} 6. Bf4 {[%emt 0:02:30]} Bg7 {[%emt 0:01:26]} 7. h3 {[%emt 0:08:21]} Nh6 {[%emt 0:01:27]} 8. Nf3 {[%emt 0:02:17]} O-O {[%emt 0:07:44]} 9. Qd2 {[%emt 0:13:28]} Nf5 {[%emt 0:00:38]} 10. O-O {[%emt 0:02:11]} f6 {[%emt 0:06:58]} 11. Re1 {[%emt 0:01:56]} Re8 {[%emt 0:00:37]} 12. Na3 {[%emt 0:13:27]} a6 {[%emt 0:22:46]} 13. Nc2 {[%emt 0:11:07]} Nd6 {[%emt 0:08:58]} 14. Rad1 {[%emt 0:09:39]} b5 {[%emt 0:05:30]} 15. Na1 {[%emt 0:10:13]} Nf7 {[%emt 0:06:23]} 16. Bh2 {[%emt 0:02:27]} e5 {[%emt 0:09:01]} 17. dxe5 {[%emt 0:00:52]} fxe5 {[%emt 0:00:04]} 18. Bc2 {[%emt 0:01:28]} Be6 {[%emt 0:00:36]} 19. Bb3 {[%emt 0:02:29]} Qb6 {[%emt 0:11:22]} 20. Nc2 {[%emt 0:02:43]} Rad8 {[%emt 0:00:18]} 21. Qe3 {[%emt 0:04:58]} d4 {[%emt 0:04:57]} 22. cxd4 {[%emt 0:00:12]} exd4 {[%emt 0:00:15]} 23. Qe4 {[%emt 0:05:45]} Nce5 {[%emt 0:02:50]} 24. Bxe6 {[%emt 0:01:57]} Rxe6 {[%emt 0:02:23]} 25. Ncxd4 {[%emt 0:03:32]} Nxf3+ {[%emt 0:00:17]} 26. Qxf3 {[%emt 0:00:47]} Rxe1+ {[%emt 0:00:16]} 27. Rxe1 {[%emt 0:00:10]} Qxd4 {[%emt 0:00:59]} 28. Bc7 {[%emt 0:00:39]} Rf8 {[%emt 0:00:10]} 29. Bg3 {[%emt 0:00:50]} Qxb2 {[%emt 0:00:22]} 30. Qb7 {[%emt 0:00:30]} Qxa2 {[%emt 0:00:25]} 31. Re7 {[%emt 0:00:19]} Bf6 {[%emt 0:00:36]} 32. Rd7 {[%emt 0:00:12]} Qe6 {[%emt 0:00:45]} 33. f3 {[%emt 0:00:54]} b4 {[%emt 0:01:03]} 34. Rc7 {[%emt 0:00:20]} Bd4+ {[%emt 0:00:29]} 35. Kh1 {[%emt 0:00:36]} Qe3 {[%emt 0:00:16]} 0-1

[Event "9th RTU Open 2019"]
[Site "Riga"]
[Date "2019.08.08"]
[Round "5.28"]
[White "Lagunow, Raphael"]
[Black "Afanasiev, Vadim"]
[Result "1-0"]
[ECO "A07"]
[WhiteElo "2427"]
[BlackElo "2263"]
[Annotator "NA"]
[PlyCount "75"]
[EventDate "2019.08.05"]
[EventType "swiss"]
[EventCountry "LAT"]
[SourceTitle "playchess.com"]
[Source "ChessBase"]
[SourceQuality "1"]
[TimeControl "5400+30"]

1. Nf3 {[%emt 0:00:30]} d5 {[%emt 0:00:00]} 2. g3 {[%emt 0:01:02]} c6 {[%emt 0:00:09]} 3. Bg2 {[%emt 0:00:17]} Bg4 {[%emt 0:00:17]} 4. h3 {[%emt 0:01:31]} Bh5 {[%emt 0:00:08]} 5. O-O {[%emt 0:01:31]} Nd7 {[%emt 0:00:30]} 6. d4 {[%emt 0:00:07]} e6 {[%emt 0:00:28]} 7. c4 {[%emt 0:00:36]} Bd6 {[%emt 0:00:39]} 8. Qb3 {[%emt 0:03:43]} Rb8 {[%emt 0:14:50]} 9. Nc3 {[%emt 0:33:22]} Ngf6 {[%emt 0:07:38]} 10. Nd2 {[%emt 0:05:50]} Bg6 {[%emt 0:05:01]} 11. e4 {[%emt 0:06:43]} dxe4 {[%emt 0:01:15]} 12. Ndxe4 {[%emt 0:00:06]} Nxe4 {[%emt 0:00:21]} 13. Nxe4 {[%emt 0:00:08]} Bxe4 {[%emt 0:03:40]} 14. Bxe4 {[%emt 0:00:06]} O-O {[%emt 0:00:46]} 15. Be3 {[%emt 0:07:18]} Qe7 {[%emt 0:11:30]} 16. Bg2 {[%emt 0:02:31]} Nf6 {[%emt 0:15:45]} 17. Rad1 {[%emt 0:06:21]} a6 {[%emt 0:02:29]} 18. Rfe1 {[%emt 0:01:37]} Rbc8 {[%emt 0:05:03]} 19. Bg5 {[%emt 0:10:35]} Rb8 {[%emt 0:14:38]} 20. f4 {[%emt 0:10:44]} h6 {[%emt 0:03:31]} 21. Bh4 {[%emt 0:00:05]} Bc7 {[%emt 0:01:21]} 22. Qe3 {[%emt 0:03:42]} b5 {[%emt 0:03:24]} 23. c5 {[%emt 0:00:05]} Ba5 {[%emt 0:00:24]} 24. Re2 {[%emt 0:01:12]} Rbc8 {[%emt 0:00:08]} 25. f5 {[%emt 0:01:01]} Rfe8 {[%emt 0:00:17]} 26. Qa3 {[%emt 0:00:23]} Bd8 {[%emt 0:03:27]} 27. Bxf6 {[%emt 0:00:22]} Qxf6 {[%emt 0:00:28]} 28. Qxa6 {[%emt 0:00:04]} Bc7 {[%emt 0:00:37]} 29. Bxc6 {[%emt 0:01:16]} Red8 {[%emt 0:01:27]} 30. d5 {[%emt 0:01:34]} Qxf5 {[%emt 0:01:07]} 31. Bb7 {[%emt 0:00:23]} Rb8 {[%emt 0:00:41]} 32. Kg2 {[%emt 0:00:02]} exd5 {[%emt 0:00:37]} 33. Qc6 {[%emt 0:00:14]} Qh5 {[%emt 0:02:38]} 34. g4 {[%emt 0:00:38]} Qg5 {[%emt 0:01:09]} 35. Qxc7 {[%emt 0:00:05]} h5 {[%emt 0:00:07]} 36. Rxd5 {[%emt 0:01:05]} Rxd5 {[%emt 0:00:27]} 37. Qxb8+ {[%emt 0:00:02]} Rd8 {[%emt 0:00:01]} 38. Qe5 {[%emt 0:00:26]} 1-0

[Event "9th RTU Open 2019"]
[Site "Riga"]
[Date "2019.08.08"]
[Round "5.29"]
[White "Mammadzada, Gunay"]
[Black "Humburg, Philipp"]
[Result "1-0"]
[ECO "C91"]
[WhiteElo "2427"]
[BlackElo "2244"]
[Annotator "NA"]
[PlyCount "119"]
[EventDate "2019.08.05"]
[EventType "swiss"]
[EventCountry "LAT"]
[SourceTitle "playchess.com"]
[Source "ChessBase"]
[SourceQuality "1"]
[TimeControl "5400+30"]

1. e4 {[%emt 0:00:00]} e5 {[%emt 0:00:26]} 2. Nf3 {[%emt 0:00:00]} Nc6 {[%emt 0:00:12]} 3. Bb5 {[%emt 0:00:00]} a6 {[%emt 0:00:03]} 4. Ba4 {[%emt 0:00:00]} Nf6 {[%emt 0:00:05]} 5. O-O {[%emt 0:00:12]} Be7 {[%emt 0:00:06]} 6. Re1 {[%emt 0:00:10]} b5 {[%emt 0:00:05]} 7. Bb3 {[%emt 0:00:03]} d6 {[%emt 0:00:04]} 8. c3 {[%emt 0:00:09]} O-O {[%emt 0:00:07]} 9. d4 {[%emt 0:00:41]} Bg4 {[%emt 0:00:06]} 10. Be3 {[%emt 0:00:05]} exd4 {[%emt 0:00:05]} 11. cxd4 {[%emt 0:00:05]} d5 {[%emt 0:00:03]} 12. e5 {[%emt 0:02:57]} Ne4 {[%emt 0:00:07]} 13. h3 {[%emt 0:12:48]} Bh5 {[%emt 0:01:14]} 14. Nbd2 {[%emt 0:06:51]} Nxd2 {[%emt 0:00:18]} 15. Qxd2 {[%emt 0:00:11]} Bxf3 {[%emt 0:00:06]} 16. gxf3 {[%emt 0:04:16]} Bb4 {[%emt 0:00:01]} 17. Qc2 {[%emt 0:01:12]} Na5 {[%emt 0:00:02]} 18. Re2 {[%emt 0:13:51]} Qd7 {[%emt 0:00:34]} 19. Kh2 {[%emt 0:01:24]} c6 {[%emt 0:10:34]} 20. Rg1 {[%emt 0:02:31]} Qe6 {[%emt 0:00:56]} 21. a3 {[%emt 0:09:39]} Be7 {[%emt 0:00:52]} 22. Ba2 {[%emt 0:01:24]} Nc4 {[%emt 0:01:03]} 23. Bb1 {[%emt 0:01:43]} g6 {[%emt 0:00:22]} 24. Bh6 {[%emt 0:03:09]} f5 {[%emt 0:41:41]} 25. Bxf8 {[%emt 0:01:05]} Kxf8 {[%emt 0:01:31]} 26. a4 {[%emt 0:03:00]} Bd8 {[%emt 0:02:55]} 27. Qc1 {[%emt 0:03:50]} Bb6 {[%emt 0:01:15]} 28. Qh6+ {[%emt 0:04:58]} Kg8 {[%emt 0:00:11]} 29. Qf4 {[%emt 0:00:19]} Rf8 {[%emt 0:04:22]} 30. axb5 {[%emt 0:00:52]} axb5 {[%emt 0:00:12]} 31. b3 {[%emt 0:02:41]} Na5 {[%emt 0:02:04]} 32. Bc2 {[%emt 0:00:21]} Qe7 {[%emt 0:02:06]} 33. h4 {[%emt 0:01:38]} Nb7 {[%emt 0:03:30]} 34. h5 {[%emt 0:03:40]} Kg7 {[%emt 0:00:40]} 35. Rg3 {[%emt 0:04:16]} Nd8 {[%emt 0:04:16]} 36. hxg6 {[%emt 0:00:10]} hxg6 {[%emt 0:01:29]} 37. Bxf5 {[%emt 0:03:28]} Rxf5 {[%emt 0:00:17]} 38. Qxf5 {[%emt 0:00:13]} Qh4+ {[%emt 0:00:19]} 39. Rh3 {[%emt 0:06:29]} gxf5 {[%emt 0:01:37]} 40. Rxh4 {[%emt 0:00:01]} Ne6 {[%emt 0:00:18]} 41. Rd2 {[%emt 0:03:42]} f4 {[%emt 0:07:15]} 42. Rg4+ {[%emt 0:00:07]} Kf7 {[%emt 0:00:06]} 43. b4 {[%emt 0:00:06]} Ke7 {[%emt 0:00:14]} 44. Kg2 {[%emt 0:00:18]} Bxd4 {[%emt 0:00:41]} 45. Rxd4 {[%emt 0:00:41]} Nxd4 {[%emt 0:00:02]} 46. Rxf4 {[%emt 0:00:21]} Nc2 {[%emt 0:00:44]} 47. Rh4 {[%emt 0:05:31]} d4 {[%emt 0:00:25]} 48. f4 {[%emt 0:01:03]} d3 {[%emt 0:04:56]} 49. Rh7+ {[%emt 0:00:22]} Ke6 {[%emt 0:00:11]} 50. Kf3 {[%emt 0:00:07]} Kd5 {[%emt 0:00:49]} 51. Rd7+ {[%emt 0:00:38]} Kc4 {[%emt 0:00:06]} 52. e6 {[%emt 0:00:30]} Nd4+ {[%emt 0:00:26]} 53. Rxd4+ {[%emt 0:00:21]} Kxd4 {[%emt 0:00:07]} 54. e7 {[%emt 0:00:04]} d2 {[%emt 0:00:15]} 55. Ke2 {[%emt 0:00:01]} Kc3 {[%emt 0:00:05]} 56. e8=Q {[%emt 0:00:07]} Kc2 {[%emt 0:00:06]} 57. Qxc6+ {[%emt 0:00:06]} Kb1 {[%emt 0:00:03]} 58. Kxd2 {[%emt 0:00:14]} Ka1 {[%emt 0:00:04]} 59. Kc2 {[%emt 0:00:06]} Ka2 {[%emt 0:00:04]} 60. Qa6# {[%emt 0:00:03]} 1-0